Cogmind - Beta 15 @@@ ROGUE MODE // 2025.06.15 @ 11:13:31 Player: winnking222 Result: Destroyed by P-60 Hacker with Shock Rifle Performance ------------- Evolutions (0) 0 Regions Visited (3) 600 Robots Destroyed (15) 75 Value Destroyed (387) 387 Prototype IDs (3) 60 Alien Tech Used (0) 0 Bonus (0) 0 TOTAL SCORE: 1122 Bonus ------- None Cogmind --------- Core Integrity 0/250 Matter 282/300 Energy 276/290 System Corruption 0% Temperature Hot (243) Movement Rolling (115) Ox1 Location -7/Recycling Parts ------- > --- POWER (1) -------- Improved Deuterium Engine > --- PROPULSION (2) --- Light Treads Compact Wheel > --- UTILITY (2) ------ Small Storage Unit Seismic Detector > --- WEAPON (2) ------- Subdweller Beam Cannon Subdweller Machine Gun > --- INVENTORY (8) ---- Subdweller Power Source Light Treads Heat Sink Targeting Computer EM Pulse Gun Powered Cannon Battle Cannon Peak State ------------ > --- POWER ------------ Improved Deuterium Engine > --- PROPULSION ------- Light Treads Light Treads > --- UTILITY ---------- Small Storage Unit Seismic Detector > --- WEAPON ----------- Subdweller Beam Cannon Subdweller Machine Gun > --- INVENTORY -------- Compact Wheel Heat Sink Targeting Computer EM Pulse Gun Beam Cannon Powered Cannon Battle Cannon [Rating: 14] Favorites ----------- Power Subdweller Power Source Engine Subdweller Power Source Propulsion Light Treads Treads Light Treads Wheel Compact Wheel Utility Small Storage Unit Device Seismic Detector Storage Small Storage Unit Weapon Subdweller Beam Cannon Energy Gun Medium Laser Energy Cannon Subdweller Beam Cannon Ballistic Gun Subdweller Machine Gun Build | -11 -10 -10 -7 ------- Run | Yrd Mat Sub Rec Slots Evolved . | . . . . Power . | . . . . Propulsion . | . . . . Utility . | . . . . Weapon . | . . . . Parts Attached 18 | 8 1 7 2 Power 4 | 1 . 2 1 Engine 4 | 1 . 2 1 Core . | . . . . Reactor . | . . . . Propulsion 5 | 2 . 2 1 Treads 4 | 2 . 2 . Leg . | . . . . Wheel 1 | . . . 1 Hover . | . . . . Flight . | . . . . Utility 2 | 2 . . . Device 1 | 1 . . . Storage 1 | 1 . . . Processor . | . . . . Hackware . | . . . . Protection . | . . . . Artifact . | . . . . Weapon 7 | 3 1 3 . Energy Gun 2 | 2 . . . Energy Cannon 3 | . 1 2 . Ballistic Gun 2 | 1 . 1 . Ballistic Cannon . | . . . . Launcher . | . . . . Special Weapon . | . . . . Impact Weapon . | . . . . Slashing Weapon . | . . . . Piercing Weapon . | . . . . Special Melee Weapon . | . . . . Unidentified Prototypes . | . . . . Parts Lost 4 | . . 4 . Power 1 | . . 1 . Propulsion 2 | . . 2 . Utility . | . . . . Weapon 1 | . . 1 . Highest Loss Streak 2 | . . 2 . To Critical Strikes . | . . . . Average Backups 6 | 2 4 7 7 Power . | . . . . Propulsion 1 | . 1 1 1 Utility 1 | . . 2 2 Weapon 2 | 1 1 3 3 Tool/Special . | . . . . Unused Backups 4 | . . . 4 Power . | . . . . Propulsion . | . . . . Utility 2 | . . . 2 Weapon 2 | . . . 2 Tool/Special . | . . . . Average Slot Usage (%) 99 | . 100 99 100 Engine 13 | . 14 13 14 Treads 27 | . 28 27 28 Device 14 | . 14 14 14 Storage 14 | . 14 14 14 Energy Gun 5 | . 14 2 . Energy Cannon 10 | . . 14 14 Ballistic Gun 12 | . 14 11 14 Peak Build Rating 14 | 7 7 12 14 Average Rating 9 | 5 7 10 13 On Entrance 6 | . 7 7 12 Naked Turns . | . . . . Heaviest Build 28 | 14 16 23 28 Greatest Support 40 | 40 40 40 40 Greatest Overweight (x) . | . . . . Average Overweight (x) . | . . . . Largest Inventory Capacity 8 | 8 8 8 8 Average Capacity 7 | 7 8 8 8 Most Carried 8 | 5 8 8 8 Average Carried 6 | 2 4 7 8 Final Capacity 8 | 8 8 8 8 Final Carried 8 | 2 8 8 8 Class Distribution -------------------- 57% | Scavenger-Mutant 42% | Mutant Dominant Class ---------------- Mutant | -10/Materials Scavenger-Mutant | -10/Subcaves Scavenger-Mutant | -7/Recycling Resources | -11 -10 -10 -7 ----------- Run | Yrd Mat Sub Rec Matter Collected 411 | 287 20 84 20 Remotely . | . . . . Salvage Created 617 | 147 168 233 69 Parts 35 | 12 10 11 2 Haulers Intercepted 1 | . 1 . . Recyclers Shooed . | . . . . Parts Field Recycled . | . . . . Retrieved Matter . | . . . . Parts Self-Destructed 7 | . . 7 . Prevented . | . . . . Kills | -11 -10 -10 -7 ------- Run | Yrd Mat Sub Rec Combat Hostiles Destroyed 8 | . 2 5 1 Guns 5 | . 2 3 . Cannons 3 | . . 2 1 Classes Destroyed 7 | 2 3 1 1 Tunneler 4 | 4 . . . Hauler 1 | . 1 . . Recycler 1 | 1 . . . Watcher 1 | . 1 . . Grunt 2 | . 2 . . Sentry 1 | . . . 1 Subdweller 5 | . . 5 . Best Kill Streak 3 | 3 2 3 1 Combat Bots Only 3 | . 2 3 1 Max Kills in Single Turn 1 | 1 1 1 1 Gunslinging . | . . . . Exploded . | . . . . Melee . | . . . . Uniques/NPCs Destroyed . | . . . . Combat | -11 -10 -10 -7 -------- Run | Yrd Mat Sub Rec Hostile Shots Fired 84 | . 12 39 33 Missed 15 | . 1 9 5 Hits 69 | . 11 30 28 Projectile 69 | . 11 30 28 Critical Strikes 3 | . . 1 2 Damage Taken 1157 | . 151 692 314 Core 253 | . 38 154 61 Absorbed by Shields . | . . . . Core Remaining (%) 100 | 100 . . . Volleys Fired 63 | 7 21 28 7 Largest 2 | 2 2 2 2 Hottest 110 | 70 70 110 110 Shots Fired 124 | 14 42 54 14 Gun 89 | 14 42 26 7 Cannon 35 | . . 28 7 Launcher . | . . . . Special . | . . . . Kinetic 50 | 7 21 15 7 Thermal 70 | 3 21 39 7 Explosive . | . . . . Electromagnetic 4 | 4 . . . Robot Hit Streak 18 | 6 7 18 14 Robot Miss Streak 3 | 2 3 1 1 Penetration Max . | . . . . Secondary Targets . | . . . . Shots Hit Robots 72 | 8 26 28 10 Core Hits 29 | 7 11 9 2 Critical Kills . | . . . . Critical Parts Destroyed 1 | . . . 1 Critical Strikes 4 | 1 1 1 1 Burn 3 | 1 1 1 . Destroy 1 | . . . 1 Melee Attacks . | . . . . Impact . | . . . . Slashing . | . . . . Piercing . | . . . . Sneak Attacks . | . . . . Combat Hostiles . | . . . . Follow-up Attacks . | . . . . Damage Inflicted 1185 | 87 267 568 263 Guns 695 | 87 263 228 117 Cannons 485 | . . 339 146 Explosions . | . . . . Melee . | . . . . Ramming 5 | . 4 1 . Kinetic 393 | 35 114 127 117 Thermal 747 | 12 149 440 146 Explosive . | . . . . Electromagnetic 40 | 40 . . . Impact . | . . . . Slashing . | . . . . Piercing . | . . . . Highest Corruption . | . . . . Average Corruption . | . . . . Corruption Purged . | . . . . Corruption Blocked . | . . . . Overload Shots . | . . . . Overflow Damage . | . . . . Projectiles . | . . . . Explosions . | . . . . Melee . | . . . . Knockbacks . | . . . . Impact . | . . . . Kinetic . | . . . . Secondary . | . . . . Self-Inflicted Damage . | . . . . Shots . | . . . . Rammed 2 | . 1 1 . Targets Rammed 2 | . 1 1 . Kicked . | . . . . Crushed . | . . . . Highest Temperature 252 | 40 182 12 252 Average Temperature 56 | 18 61 4 111 Received Heat Transfer 324 | . 90 150 84 Effects 3 | . . . 3 Interference 3 | . . . 3 Siege Activations . | . . . . Martial Activations . | . . . . Shielding Activations . | . . . . Robots Disrupted . | . . . . Combat Hostiles . | . . . . Robots Corrupted . | . . . . Combat Hostiles . | . . . . Parts Fried . | . . . . Impact Corruptions . | . . . . Robots Melted . | . . . . Combat Hostiles . | . . . . Parts Melted 5 | 2 . 3 . Heat Transferred 1702 | 111 518 888 185 Parts Sabotaged . | . . . . Parts Stolen . | . . . . Parts Stripped . | . . . . Power Chain Reactions . | . . . . Alert | -11 -10 -10 -7 ------- Run | Yrd Mat Sub Rec Maximum Alert Level . | . . . . Low Security (%) 100 | 100 100 . 100 Level 1 . | . . . . Level 2 . | . . . . Level 3 . | . . . . Level 4 . | . . . . Level 5 . | . . . . High Security . | . . . . Max Security . | . . . . Peak Influence 50 | 10 50 . 20 Initial . | . . . . Average 4 | 1 6 . 3 Influence Increases 125 | 25 78 . 22 Destroy 0b10 Robot/C 60 | . 40 . 20 Destroy 0b10 Robot/NC 35 | 25 10 . . Destroy Leader 14 | . 14 . . Successful Hack 14 | . 14 . . Destroy Structure 2 | . . . 2 Influence Decreases 123 | 25 78 . 20 Time Decay 123 | 25 78 . 20 Squads Dispatched 1 | . 1 . . Investigation . | . . . . Extermination . | . . . . Reinforcement 1 | . 1 . . Assault . | . . . . Garrison . | . . . . Intercept . | . . . . Searches Triggered . | . . . . Construction Impeded . | . . . . Haulers Reinforced . | . . . . Active Scanning Responses . | . . . . Cargo Convoy Interrupts . | . . . . Stealth | -11 -10 -10 -7 --------- Run | Yrd Mat Sub Rec Distress Signals . | . . . . Communications Jammed . | . . . . Distress Signals . | . . . . Times Spotted 20 | . 5 11 4 Peak Tracking Total 6 | . 3 6 3 Tactical Retreats . | . . . . Traps | -11 -10 -10 -7 ------- Run | Yrd Mat Sub Rec Traps Triggered . | . . . . Indirectly . | . . . . Trap Hack Attempts . | . . . . Triggered . | . . . . Disarmed . | . . . . Reprogrammed . | . . . . Reused . | . . . . Traps Extracted . | . . . . Installed . | . . . . Triggered . | . . . . Machines | -11 -10 -10 -7 ---------- Run | Yrd Mat Sub Rec Machines Disabled . | . . . . Max in Single Turn . | . . . . Machines Repaired . | . . . . Machines Dismantled . | . . . . Machines Sabotaged . | . . . . Overloaded Fab Kills . | . . . . Hacking | -11 -10 -10 -7 --------- Run | Yrd Mat Sub Rec Machines Accessed 1 | . 1 . . Terminals 1 | . 1 . . Fabricators . | . . . . Repair Stations . | . . . . Recycling Units . | . . . . Scanalyzers . | . . . . Garrison Access . | . . . . Total Hacks 2 | . 2 . . Successful 1 | . 1 . . Failed 1 | . 1 . . Catastrophic . | . . . . Database Lockouts . | . . . . Manual . | . . . . Terminals 2 | . 2 . . Fabricators . | . . . . Repair Stations . | . . . . Recycling Units . | . . . . Scanalyzers . | . . . . Garrison Access . | . . . . Terminal Hacks 1 | . 1 . . Prototype ID Bank 1 | . 1 . . Fabricator Hacks . | . . . . Repair Station Hacks . | . . . . Recycling Unit Hacks . | . . . . Scanalyzer . | . . . . Garrison Access Hacks . | . . . . Unauthorized Hacks . | . . . . Terminals . | . . . . Fabricators . | . . . . Repair Stations . | . . . . Recycling Units . | . . . . Scanalyzers . | . . . . Garrison Access . | . . . . Data Cores Recovered . | . . . . Used . | . . . . Hacking Detections 1 | . 1 . . Full Trace Events . | . . . . Feedback Events . | . . . . Feedback Blocked . | . . . . Robot Schematics Acquired . | . . . . Robots Built . | . . . . Authchips . | . . . . Time . | . . . . Total Robot Build Rating . | . . . . Part Schematics Acquired . | . . . . Parts Built . | . . . . Authchips . | . . . . Time . | . . . . Total Part Build Rating . | . . . . Parts Repaired . | . . . . Time . | . . . . Parts Recycled . | . . . . Recycled Matter . | . . . . Retrieved Matter . | . . . . Retrieved Components . | . . . . Parts Scanalyzed . | . . . . Part Schematics Acquired . | . . . . Parts Damaged . | . . . . Bothacking | -11 -10 -10 -7 ------------ Run | Yrd Mat Sub Rec Used RIF Installer . | . . . . Robots Hacked . | . . . . Non-combat . | . . . . Combat . | . . . . Robot Hacks Applied . | . . . . Relay Couplers Released . | . . . . Fabnet Peak Effective % . | . . . . Robots Rewired . | . . . . Allies Hacked . | . . . . Hacks Repelled . | . . . . Allies | -11 -10 -10 -7 -------- Run | Yrd Mat Sub Rec Total Allies . | . . . . Largest Group . | . . . . Highest-Rated Group . | . . . . Highest-Rated Ally . | . . . . Total Orders . | . . . . Ally Attacks . | . . . . Total Damage . | . . . . Kills . | . . . . Allies Corrupted . | . . . . Allies Melted . | . . . . Intel | -11 -10 -10 -7 ------- Run | Yrd Mat Sub Rec Active Infowar (turns) 1887 | 27 499 1254 107 Seismic 1887 | 27 499 1254 107 Robot Analysis Total . | . . . . Derelict Logs Recovered 1 | . . 1 . Drone Launches . | . . . . Drone Recoveries . | . . . . Exploration | -11 -10 -10 -7 ------------- Run | Yrd Mat Sub Rec Turns Passed 2026 | 163 499 1254 110 Spaces Moved 1083 | 90 234 706 53 Core 15 | 15 . . . Treads 1068 | 75 234 706 53 Legs . | . . . . Wheels . | . . . . Hover . | . . . . Flight . | . . . . Fastest Speed 50 | 50 160 160 160 Average Speed 158 | 141 160 160 160 Slowest Speed 160 | 160 160 160 160 Overloaded Moves . | . . . . Propulsion Burnouts . | . . . . Robots Hopped . | . . . . Potential Cave-ins . | . . . . Cave-ins Triggered . | . . . . Exploration Rate (%) 22 | 6 33 35 16 Regions Visited 3 Branch Regions 2 Pre-discovered Areas . | . . . . Known Exits Taken . | . . . . Unknown Exits Taken 3 | 1 1 1 . Scrap Searched 1 | . . 1 . Spaces Dug 1 | . . 1 . Terrain Destroyed 3 | . . 1 2 Melee . | . . . . Projectile 3 | . . 1 2 AOE . | . . . . Terrain Rammed . | . . . . Walls Destroyed . | . . . . Machines Disabled . | . . . . Actions | -11 -10 -10 -7 --------- Run | Yrd Mat Sub Rec Total 1272 | 111 320 776 65 Wait 86 | . 58 28 . Move 1081 | 89 233 706 53 Hop . | . . . . Pick Up 18 | 7 6 4 1 Fast Attach 4 | 2 . 2 . Attach 8 | 5 . 3 . Detach . | . . . . Swap 6 | 1 1 2 2 Drop 5 | . . 3 2 Fire 63 | 7 21 28 7 Melee . | . . . . Ram . | . . . . Kick . | . . . . Crush 1 | . 1 . . Escape Stasis . | . . . . Rewire . | . . . . Trap . | . . . . Miscellaneous . | . . . . Route ------- -11/Scrapyard -10/Materials (discovered 2 exits: [*Min] / [*Sub]) -10/Subcaves -7/Recycling History --------- Turn | Location | Event 12 | -11/Scrapyard | Discovered new exit (range 16) 164 | -11/Scrapyard | Entered Materials 250 | -10/Materials | Discovered new exit (range 5) 317 | -10/Materials | Build established: Mutant 491 | -10/Materials | Discovered new exit (range 16) 663 | -10/Materials | Entered Subcaves 686 | -10/Subcaves | Learned location of 1 exit from Materials 1043 | -10/Subcaves | A Subdweller sparked back to life 1043 | -10/Subcaves | A Subdweller sparked back to life 1056 | -10/Subcaves | Core integrity fell below 50% 1089 | -10/Subcaves | Found Prototype Energy Cannon 1155 | -10/Subcaves | Build established: Scavenger-Mutant 1912 | -10/Subcaves | Discovered new exit (range 2) 1917 | -10/Subcaves | Entered Recycling 1924 | -7/Recycling | Core integrity fell below 20% 2027 | -7/Recycling | Destroyed by P-60 Hacker with Shock Rifle Last Messages --------------- 01917_ Slammed into S-10 Pest. LOCATION=UNKNOWN GOAL=ESCAPE 01923_ Y-54 Guardian springs to life. 01925_ Y-54 Guardian suffers critical hit (Destroy). 01925_ Destroyed Lgt. Treads. 01928_ Y-54 Guardian destroyed. 01933_ Dropped Sub. Power Source. 01934_ Acquired 20 matter. 01938_ Dropped Beam Cannon. 01938_ Acquired Sub. Power Source. 02008_ G-47 Trooper springs to life. 02009_ D-53 Grenadier springs to life. 02009_ P-60 Hacker springs to life. 02014_ Destroyed Shock Rifle. 02017_ Destroyed Gravmag System. 02024_ Overheating: System interference. 02024_ Seismic Detector temporarily disabled. 02024_ Sub. Beam Cannon temporarily disabled. 02024_ Seismic Detector temporarily disabled. Map ----- +----------------------------------------------------+ | ?????????????????# #??????# #???????? | | ?????????????????# #??????# #???????? | | ?????????????????# #??????# #???????? | | ?????????????????# #??????# !##??????? | | ?????????????????# #??????# ] %#??????? | | ?????????????????# #??????# ##??????? | | ?????????????????# #??????# #???????? | | ?????????????????# #??????# #???????? | | ?????????????????#######+######?????## ##??????? | | ?????????????????????# ########## #??????? | | ?????????????????????# #??????? | | ?????????????????????# #??????? | | ?????????????????????# #??????? | | ?????????????????????# ########## #??????? | | ?????????????????????## ##????????#######??????? | | ??????????????????????# r#??????????????????????? | | ???????????????????#### #?########?????????????? | | ???????????????????#""" # ! #?????????????? | | ???????????????????#"Y # b#?????????????? | | ???????????????????#""" r/ t#?????????????? | | ????????????##+##+##### #! #?????????????? | | ????????????# # k[!]! #?????????????? | | ????????????# + g !#?????????????? | | ?????????? # % / ????????? | | ??????????? ####+######gp; ? % # #???????????? | | ????????????????????????#@#?? #?????????????? | | ????????????????????????# #???#/####?????????????? | | ????????????????????????# #???? #????????????????? | | ????????????????????????#u#?????#????????????????? | | ???????????????????????? ??????????????????????? | | ???????????????????????? #??????????????????????? | | ???????????????????????? #??????????????????????? | | ???????????????????????? #??????????????????????? | | ???????????????????????? #??????????????????????? | | ???????????????????????? ???????????????????????? | | ??????????????????????? ???????????????????????? | | ???????????????????????###???????????????????????? | | ?????????????????????????????????????????????????? | | ?????????????????????????????????????????????????? | | ?????????????????????????????????????????????????? | | ?????????????????????????????????????????????????? | | ?????????????????????????????????????????????????? | | ?????????????????????????????????????????????????? | | ?????????????????????????????????????????????????? | | ?????????????????????????????????????????????????? | | ?????????????????????????????????????????????????? | | ?????????????????????????????????????????????????? | | ?????????????????????????????????????????????????? | | ?????????????????????????????????????????????????? | | ?????????????????????????????????????????????????? | +----------------------------------------------------+ Best States ------------- Heat Dissipation 25 Energy Generation 16 Energy Capacity 290 Matter Stores 300 Matter Capacity 300 Sight Range 16 Terrain Scan Density 10 Evasion (%) 40 Recoil Reduction 2 Item Schematics ----------------- None Robot Schematics ------------------ None Fabricated ------------ Nothing Repaired ---------- Nothing Alien Tech Used ----------------- None Achievements -------------- None Challenges ------------ None Game ------ Seed StealthIntegrityField Manual? 0 Play Time 00:10:43 Cumulative 70.3 hours Start 2025.06.01 @ 10:11:53 End 2025.06.15 @ 11:13:31 Sessions 2 Manual Loads 0 Difficulty Rogue Special Mode None Game No. 131 Rogue 131 Adventurer 0 Explorer 0 Win Type - Total 1 Types 1/0/0/0/0/0/0/0/0/0 Lore% 55 Gallery% 45 Achievement% 41 Wizard Run 0 Options --------- Layout 0 ASCII 0 Keyboard 0 Movement Mouse Keybinds 0 Fullscreen 1 Font 16/SmallcapsGlow Map View 75x55 Zoom Use 0% Tactical HUD 1 Map Filters NONE Filters NONE Steam 1 RUN: a1276ad9-e724-43a4-be7c-ee9e6c0a74a2